bitfinex-derivatives/quotes_BTCF0:USTF0_20251202
["timestamp","ask_amount","ask_price","bid_price","bid_amount"]
[1764716858820,0.01097982,91865.0,91864.0,0.17069]
[1764716859122,0.01097982,91865.0,91864.0,0.37065692]
[1764716859123,0.17956982,91865.0,91864.0,0.37065692]
[1764716860123,9.732e-05,91865.0,91864.0,0.47165692]
[1764716860517,9.732e-05,91865.0,91864.0,0.47265692]
[1764716861023,9.732e-05,91865.0,91864.0,0.47365692]
[1764716862229,0.0108813,91875.0,91873.0,0.1787115]
[1764716862416,0.0108813,91875.0,91873.0,0.5395115]
[1764716862818,0.0108813,91875.0,91873.0,0.52863]
[1764716863129,0.0821132,91874.0,91873.0,0.52863]
[1764716863325,0.0821132,91874.0,91873.0,0.62863]
[1764716863524,0.0001632,91874.0,91873.0,0.62963]
[1764716863917,0.0011632,91874.0,91873.0,0.62963]
[1764716864117,0.0011632,91874.0,91873.0,0.63063]
[1764716866716,0.0928303,91883.0,91882.0,0.1787104]
[1764716866915,0.0108803,91883.0,91882.0,0.1787104]
[1764716867128,0.1736195,91890.0,91889.0,0.1787095]
[1764716867327,0.1736195,91890.0,91889.0,0.16783]
[1764716868229,0.1736195,91890.0,91889.0,0.26783]
[1764716868533,0.1766195,91890.0,91889.0,0.26783]
[1764716868930,0.1766195,91890.0,91889.0,0.2787096]
[1764716869134,0.1766195,91890.0,91889.0,0.1787096]
[1764716870129,0.1766195,91890.0,91889.0,0.16783]
[1764716870334,0.1736195,91890.0,91889.0,0.16783]
[1764716870537,0.1746195,91890.0,91889.0,0.16783]
[1764716870730,0.001,91890.0,91889.0,0.52863]
[1764716870936,0.0928292,91893.0,91890.0,0.0224195]
[1764716871237,0.1736192,91893.0,91892.0,0.16783]
[1764716872231,0.16274,91893.0,91892.0,0.26783]
[1764716872534,0.16290329,91899.0,91898.0,0.16783]
[1764716872838,0.16290329,91899.0,91898.0,0.52863]
[1764716873133,0.08211329,91899.0,91898.0,0.52863]
[1764716873324,0.00016329,91899.0,91898.0,0.52963]
[1764716873652,0.00016329,91899.0,91898.0,0.82959694]
[1764716874223,0.00016329,91899.0,91898.0,0.83059694]
[1764716874433,0.00016329,91899.0,91898.0,1.33595694]
[1764716874631,0.00016329,91899.0,91898.0,1.33495694]
[1764716874937,0.00016329,91899.0,91898.0,1.33595694]
[1764716875141,0.00016329,91899.0,91898.0,1.33695694]
[1764716875732,0.00016329,91899.0,91898.0,1.42542835]
[1764716876634,0.00016329,91899.0,91898.0,1.42442835]
[1764716876939,0.00016329,91899.0,91898.0,1.42542835]
[1764716877442,0.16290329,91899.0,91898.0,1.42642835]
[1764716877628,0.16290329,91899.0,91898.0,1.42542835]
[1764716877826,0.16290329,91899.0,91898.0,1.34229835]
[1764716878035,0.16290329,91899.0,91898.0,1.24329835]
[1764716878430,0.16290329,91899.0,91898.0,1.24029835]
[1764716878630,0.16290329,91899.0,91898.0,1.24229835]
[1764716880339,0.16290329,91899.0,91898.0,1.04233141]
[1764716880539,0.16290329,91899.0,91898.0,1.14233141]
[1764716880731,0.16290329,91899.0,91898.0,0.002]
[1764716881236,0.16290329,91899.0,91898.0,0.16983]
[1764716881742,0.16290329,91899.0,91898.0,0.16883]
[1764716882841,0.16290329,91899.0,91898.0,0.16983]
[1764716883042,0.16490329,91899.0,91898.0,0.16883]
[1764716883625,0.16390329,91899.0,91898.0,0.16883]
[1764716885242,0.16390329,91899.0,91898.0,0.001]
[1764716885832,0.20390329,91899.0,91898.0,0.001]
[1764716886034,0.20390329,91899.0,91888.0,0.3608]
[1764716886035,0.15016,91889.0,91888.0,0.3608]
[1764716886240,0.1610396,91889.0,91888.0,0.3608]
[1764716887035,0.2113704,91882.0,91881.0,0.66139]
[1764716887233,0.2113704,91882.0,91881.0,0.50528]
[1764716887438,0.2113704,91882.0,91880.0,0.00016329]
[1764716887439,0.15016,91881.0,91880.0,0.00016329]
[1764716888343,0.15016,91864.0,91863.0,0.3608]
[1764716888540,0.1610426,91864.0,91863.0,0.56076692]
[1764716888746,0.1610426,91864.0,91863.0,0.63832692]
[1764716888945,0.1610426,91864.0,91863.0,0.71687692]
[1764716889841,0.1610426,91864.0,91863.0,0.71987692]
[1764716891330,0.1610426,91864.0,91863.0,0.72187692]
[1764716894349,0.1610426,91864.0,91863.0,0.71887692]
[1764716897146,0.0108826,91864.0,91863.0,0.71887692]
[1764716897345,0.1610425,91865.0,91864.0,0.1669925]
[1764716897645,0.1610425,91865.0,91864.0,0.15611]
[1764716897853,0.0108825,91865.0,91864.0,0.15611]
[1764716898453,0.0860725,91865.0,91864.0,0.15611]
[1764716899257,0.1610425,91865.0,91864.0,0.15711]
[1764716899554,0.1610425,91865.0,91864.0,0.15811]
[1764716900561,0.1610425,91865.0,91864.0,0.25811]
[1764716900944,0.1610425,91865.0,91864.0,0.15811]
[1764716903672,0.0860725,91865.0,91864.0,0.15811]
[1764716903851,0.0108818,91871.0,91866.0,0.02423]
[1764716904051,0.00016329,91873.0,91872.0,0.2154416]
[1764716904559,0.00016329,91873.0,91872.0,0.20456]
[1764716905150,0.00016329,91873.0,91872.0,0.30456]
[1764716906448,0.00016329,91873.0,91872.0,0.30556]
[1764716909157,0.00016329,91873.0,91872.0,0.30656]
[1764716909464,0.0108805,91881.0,91880.0,0.26071104]
[1764716909653,0.0108805,91881.0,91880.0,0.66251]
[1764716910657,0.0108805,91881.0,91880.0,0.76251]
[1764716911171,0.0108805,91881.0,91880.0,0.76351]
[1764716911366,0.0860705,91881.0,91880.0,0.76351]
[1764716911566,0.0860705,91881.0,91880.0,0.66351]
[1764716911755,0.0870705,91881.0,91880.0,0.66351]
[1764716912150,0.1610405,91881.0,91880.0,0.66351]
[1764716912567,0.1610405,91881.0,91880.0,0.58396]
[1764716912769,0.1610405,91881.0,91880.0,0.66251]
[1764716917558,0.1610405,91881.0,91880.0,0.58396]
[1764716917770,0.1610405,91881.0,91880.0,0.65339]
[1764716920071,0.5218405,91881.0,91880.0,0.65339]
[1764716921171,0.5218405,91881.0,91880.0,0.5064]
[1764716923167,0.5218405,91881.0,91880.0,0.001]
[1764716923965,0.5218405,91881.0,91880.0,0.13313]
[1764716924672,0.5218405,91881.0,91880.0,0.06615]
[1764716924872,0.5218405,91881.0,91880.0,0.001]
[1764716924873,0.54538009,91881.0,91880.0,0.001]
[1764716927374,0.54538009,91881.0,91880.0,0.13313]
[1764716928463,0.54538009,91881.0,91880.0,0.06615]
[1764716929170,0.54538009,91881.0,91880.0,0.001]
[1764716932878,0.54538009,91881.0,91880.0,0.06615]
[1764716934469,0.54538009,91881.0,91880.0,0.13313]
[1764716939581,0.0108805,91881.0,91880.0,0.24296]
[1764716939777,0.0809705,91881.0,91880.0,0.24296]
[1764716940183,0.0108805,91881.0,91880.0,0.24296]
[1764716940686,0.0108805,91882.0,91880.0,0.1217107]
[1764716940879,0.0108805,91882.0,91881.0,0.13213]
[1764716941878,0.0108805,91882.0,91881.0,0.23213]
[1764716942483,0.00016329,91890.0,91889.0,0.13213]
[1764716942683,0.00016329,91890.0,91889.0,0.57183305]
[1764716942874,0.00016329,91890.0,91889.0,0.49393]
[1764716943372,0.1354973,91909.0,91908.0,0.12286]
[1764716943693,0.0108767,91914.0,91911.0,0.12286]
[1764716943990,0.48542,91912.0,91911.0,0.12286]
[1764716945085,0.48542,91912.0,91911.0,0.12386]
[1764716945692,0.48542,91912.0,91911.0,0.20870002]
[1764716945885,0.48542,91912.0,91911.0,0.30970002]
[1764716946079,0.48542,91912.0,91911.0,0.20970002]
[1764716946683,0.010876,91920.0,91917.0,0.0108762]
[1764716946890,0.135496,91920.0,91919.0,0.12286]
[1764716947682,0.00016329,91921.0,91920.0,0.14029]
[1764716948898,0.00016329,91921.0,91920.0,0.24029]
[1764716950687,0.00016329,91921.0,91920.0,0.24129]
[1764716951596,0.12478329,91921.0,91920.0,0.22386]
[1764716951896,0.12478329,91921.0,91920.0,0.12386]
[1764716953000,0.06417329,91921.0,91920.0,0.22386]
[1764716953400,0.06417329,91921.0,91920.0,0.12386]
[1764716953992,0.00016329,91921.0,91920.0,0.12386]
[1764716954499,0.00016329,91921.0,91920.0,0.12286]
[1764716954702,0.06417329,91921.0,91920.0,0.12386]
[1764716954994,0.12478329,91921.0,91920.0,0.12386]
[1764716955195,0.12478329,91921.0,91920.0,0.06301]
[1764716955398,0.12478329,91921.0,91920.0,0.12386]
[1764716956305,0.12578329,91921.0,91920.0,0.12386]
[1764716956805,0.12578329,91921.0,91920.0,0.001]
[1764716956997,0.12462,91912.0,91911.0,0.8560729]
[1764716957197,0.12462,91912.0,91911.0,0.71390002]
[1764716957604,0.1354969,91912.0,91911.0,0.71390002]
[1764716957997,0.1354969,91912.0,91911.0,0.91386696]
[1764716957998,0.12462,91912.0,91911.0,0.91386696]
[1764716958496,0.1354961,91919.0,91918.0,0.133736]
[1764716959497,0.1354961,91919.0,91918.0,0.12286]
[1764716959809,0.1354961,91919.0,91918.0,0.22286]
[1764716960604,0.1354961,91919.0,91918.0,0.22386]
[1764716961003,0.1354961,91919.0,91918.0,0.12386]
[1764716961199,0.1354961,91919.0,91918.0,0.12286]
[1764716961409,0.1354961,91919.0,91918.0,0.12386]
[1764716961708,0.1364961,91919.0,91918.0,0.06301]
[1764716962098,0.1354961,91919.0,91918.0,0.06301]
[1764716962404,0.1364961,91919.0,91918.0,0.06301]
[1764716962610,0.1364961,91919.0,91918.0,0.12386]
[1764716962809,0.1364961,91919.0,91918.0,0.06301]
[1764716963500,0.1364961,91919.0,91918.0,0.001]
[1764716967604,0.1364961,91919.0,91918.0,0.12386]
[1764716972818,0.1364961,91919.0,91918.0,0.22386]
[1764716973319,0.1364961,91919.0,91918.0,0.001]
[1764716974519,0.1364961,91919.0,91918.0,0.05591]
[1764716974818,0.1364961,91919.0,91918.0,0.11242]
[1764716980720,0.1364961,91919.0,91918.0,0.21242]
[1764716981221,0.1364961,91919.0,91918.0,0.11242]
[1764716985318,0.001,91919.0,91918.0,0.21342]
[1764716985621,0.001,91919.0,91918.0,0.41338694]
[1764716985815,0.001,91919.0,91918.0,1.01854694]
[1764716986610,0.00016329,91921.0,91920.0,0.11035]
[1764716986918,0.00027196,91926.0,91925.0,0.1212253]
[1764716987420,0.14496196,91926.0,91925.0,0.11035]
[1764716987616,0.14496196,91926.0,91925.0,0.1687564]
[1764716987817,0.00027196,91926.0,91925.0,0.2687564]
[1764716988018,0.00027196,91926.0,91925.0,0.21035]
[1764716988415,0.11143196,91926.0,91925.0,0.26874547]
[1764716988619,0.11143196,91926.0,91925.0,0.26974547]
[1764716990523,0.11143196,91926.0,91925.0,0.21135]
[1764716991225,0.11143196,91926.0,91925.0,0.71647]
[1764716995824,0.05727196,91926.0,91925.0,0.71647]
[1764716996030,0.11143196,91926.0,91925.0,0.71647]
[1764716999931,0.00127196,91926.0,91925.0,0.80822547]
[1764717000230,0.05727196,91926.0,91925.0,0.80822547]
[1764717000633,0.11143196,91926.0,91925.0,0.80822547]
[1764717000825,0.11143196,91926.0,91925.0,0.80818547]
[1764717001431,0.11143196,91926.0,91925.0,0.11558547]
[1764717001737,0.11143196,91926.0,91925.0,0.001]
[1764717002122,0.15143196,91926.0,91925.0,0.001]
[1764717002331,0.11143196,91926.0,91925.0,0.001]
[1764717002528,0.16143196,91926.0,91925.0,0.001]
[1764717002728,0.11143196,91926.0,91925.0,0.001]
[1764717006722,0.13452148,91926.0,91925.0,0.10421]
[1764717009737,0.11143196,91926.0,91925.0,0.10421]
[1764717010628,0.10949196,91926.0,91925.0,0.10421]
[1764717011035,0.10949196,91926.0,91925.0,0.001]
[1764717011429,0.10949196,91926.0,91925.0,0.05262]
[1764717011633,0.10949196,91926.0,91925.0,0.10421]
[1764717014137,0.10949196,91926.0,91925.0,0.001]
[1764717015339,0.10363,91918.0,91917.0,0.16160547]
[1764717016040,0.1145062,91918.0,91917.0,0.10321]
[1764717016645,0.1145062,91918.0,91917.0,0.16360547]
[1764717017140,0.1145062,91918.0,91917.0,0.36357241]
[1764717017542,0.1145062,91918.0,91917.0,0.46357241]
[1764717017742,0.1145062,91918.0,91917.0,0.36357241]
[1764717018742,0.1145062,91918.0,91917.0,0.30517694]
[1764717019046,0.0108762,91918.0,91917.0,0.40517694]
[1764717019947,0.0622862,91918.0,91917.0,0.40517694]
[1764717020735,0.1145062,91918.0,91917.0,0.46363561]
[1764717020942,0.1145062,91918.0,91917.0,0.36363561]
[1764717022435,0.1145062,91918.0,91917.0,0.16366867]
[1764717023945,0.1145062,91918.0,91917.0,0.10521]
[1764717024446,0.1145062,91918.0,91917.0,0.16366867]
[1764717024948,0.1145062,91918.0,91917.0,0.10521]
[1764717025444,0.1145062,91918.0,91917.0,0.16366867]
[1764717025640,0.1145062,91918.0,91917.0,0.10521]
[1764717026344,0.1145062,91918.0,91917.0,0.16366867]
[1764717027648,0.1145062,91918.0,91917.0,0.36363561]
[1764717028235,0.1145062,91918.0,91917.0,0.16366867]
[1764717028439,0.4753062,91918.0,91917.0,0.16366867]
[1764717030357,0.4753062,91918.0,91917.0,0.10521]
[1764717031952,0.4753062,91918.0,91917.0,0.30517694]
[1764717033251,0.4753062,91918.0,91917.0,0.10521]
[1764717037454,0.1145062,91918.0,91917.0,0.10521]
[1764717040158,0.1145062,91918.0,91917.0,0.30517694]
[1764717040556,0.1145062,91918.0,91917.0,0.22501621]
[1764717040857,0.1145062,91918.0,91917.0,0.30517694]
[1764717041360,0.1145062,91918.0,91917.0,0.10521]
[1764717042548,0.0108762,91918.0,91917.0,0.30517694]
[1764717042751,0.0108762,91918.0,91917.0,0.76597694]
[1764717042947,0.0108762,91918.0,91917.0,0.84388996]
[1764717044049,0.0108759,91921.0,91920.0,0.0381057]
[1764717044245,0.09329196,91926.0,91925.0,0.08724]
[1764717044445,0.09329196,91926.0,91925.0,0.44804]
[1764717045360,0.09329196,91926.0,91925.0,0.54804]
[1764717046859,0.09329196,91926.0,91925.0,0.54904]
[1764717047464,0.09429196,91926.0,91925.0,0.54904]
[1764717049757,0.00127196,91926.0,91925.0,0.55527]
[1764717050064,0.04861196,91926.0,91925.0,0.55527]
[1764717050267,0.09429196,91926.0,91925.0,0.55527]
[1764717050663,0.09429196,91926.0,91925.0,0.54904]
[1764717051863,0.10516716,91926.0,91925.0,0.5599153]
[1764717052063,0.10516716,91926.0,91925.0,0.5609153]
[1764717052251,0.10516716,91926.0,91925.0,0.5599153]
[1764717053067,0.05948716,91926.0,91925.0,0.5599153]
[1764717054168,0.10516716,91926.0,91925.0,0.5599153]
[1764717056375,0.04861196,91926.0,91925.0,0.5599153]
[1764717056565,0.09429196,91926.0,91925.0,0.5609153]
[1764717056765,0.09429196,91926.0,91925.0,0.5599153]
[1764717057668,0.00127196,91926.0,91925.0,0.5609153]
[1764717057975,0.09318319,91935.0,91934.0,0.0981143]
[1764717058162,0.09318319,91935.0,91934.0,0.64934513]
[1764717058775,0.09318319,91935.0,91934.0,0.65131914]
[1764717059076,0.09318319,91935.0,91934.0,0.75131914]
[1764717059876,0.09518319,91935.0,91934.0,0.75131914]
[1764717061877,0.09518319,91935.0,91934.0,0.70508831]
[1764717064381,0.09518319,91935.0,91934.0,0.60508831]
[1764717069698,0.09518319,91935.0,91934.0,0.70508831]
[1764717070892,0.09518319,91935.0,91934.0,0.70608831]
[1764717071494,0.14518319,91935.0,91934.0,0.01284831]
[1764717071793,0.14518319,91935.0,91921.0,0.07791302]
[1764717071794,0.0942352,91926.0,91925.0,0.00016319]
[1764717071990,0.4780632,91926.0,91925.0,0.01213519]
[1764717073088,0.4790632,91926.0,91925.0,0.01213519]
[1764717073289,0.4790632,91926.0,91925.0,0.05352519]
[1764717074292,0.4790632,91926.0,91925.0,0.01213519]
[1764717074794,0.4790632,91926.0,91925.0,0.01313519]
[1764717075185,0.4560352,91926.0,91925.0,0.01313519]
[1764717075382,0.4560352,91926.0,91925.0,0.09843519]
[1764717076692,0.3618,91926.0,91925.0,0.11396519]
[1764717076993,0.3618,91926.0,91925.0,0.17240015]
[1764717077300,0.08436,91926.0,91925.0,0.09843519]
[1764717077884,0.08436,91926.0,91925.0,0.19843519]
[1764717079597,0.001,91926.0,91925.0,0.21396519]
[1764717079800,0.001,91926.0,91925.0,0.21496519]
[1764717081098,0.001,91926.0,91925.0,0.31496519]
[1764717083397,0.00016319,91935.0,91934.0,0.0961743]
[1764717083602,0.00016319,91935.0,91934.0,0.9628943]
[1764717083792,0.00016319,91935.0,91934.0,1.24077427]
[1764717084401,0.00016319,91935.0,91934.0,1.16286125]
[1764717084703,0.00016319,91935.0,91934.0,1.36286125]
[1764717085101,0.00216319,91935.0,91934.0,1.36286125]
[1764717085510,0.00016319,91935.0,91934.0,1.36286125]
[1764717085703,0.00016319,91935.0,91934.0,1.36486125]
[1764717085905,0.00016319,91935.0,91934.0,1.35398695]
[1764717086105,0.00016319,91935.0,91934.0,1.35498695]
[1764717086809,0.08352319,91935.0,91934.0,1.35398695]
[1764717087009,0.08352319,91935.0,91934.0,1.25498695]
[1764717087303,0.04189319,91935.0,91934.0,1.25498695]
[1764717087602,0.00016319,91935.0,91934.0,1.25498695]
[1764717091906,0.00016319,91935.0,91934.0,1.26586125]
[1764717093909,0.07937319,91935.0,91934.0,1.26586125]
[1764717094611,0.04006319,91935.0,91934.0,1.26586125]
[1764717095912,0.00016319,91935.0,91934.0,1.26586125]
[1764717100213,0.00016319,91935.0,91934.0,1.36586125]
[1764717101216,0.03932319,91935.0,91934.0,1.36586125]
[1764717101418,0.07775319,91935.0,91934.0,1.26586125]
[1764717102521,0.00016319,91935.0,91934.0,1.26586125]
[1764717104006,0.00016319,91935.0,91934.0,1.36586125]
[1764717105411,0.00016319,91935.0,91934.0,1.36486125]
[1764717105611,0.00016319,91935.0,91934.0,1.36586125]
[1764717106717,0.03932319,91935.0,91934.0,1.36586125]
[1764717106919,0.07775319,91935.0,91934.0,1.26586125]
[1764717107217,0.07775319,91935.0,91934.0,1.26486125]
[1764717107416,0.07775319,91935.0,91934.0,1.26586125]
[1764717108824,0.00016319,91935.0,91934.0,1.26586125]
[1764717109212,0.08862729,91935.0,91934.0,1.26586125]
[1764717111213,0.08862729,91935.0,91934.0,1.34377427]
[1764717112122,0.08862729,91935.0,91934.0,1.26586125]
[1764717112323,0.08862729,91935.0,91934.0,0.89418695]
[1764717112527,0.08862729,91935.0,91934.0,0.79406695]
[1764717113327,0.08862729,91935.0,91934.0,0.5941]
[1764717113525,0.08862729,91935.0,91934.0,0.0883]
[1764717113727,0.09362729,91935.0,91934.0,0.5911]
[1764717116425,0.09362729,91935.0,91934.0,0.5058]
[1764717117930,0.09362729,91935.0,91934.0,0.54554]
[1764717118138,0.09362729,91935.0,91934.0,0.58526]
[1764717118336,0.09362729,91935.0,91934.0,0.74370789]
[1764717118630,0.00516319,91935.0,91934.0,0.74370789]
[1764717118834,0.00516319,91935.0,91934.0,0.68526]
[1764717119022,0.00516319,91935.0,91934.0,0.88622695]
[1764717120337,0.00516319,91935.0,91934.0,0.98622695]
[1764717120536,0.00516319,91935.0,91934.0,0.88622695]
[1764717123831,0.04432319,91935.0,91934.0,0.88622695]
[1764717125050,0.10369319,91935.0,91934.0,0.88622695]
[1764717125929,0.11456729,91935.0,91934.0,0.88622695]
[1764717126634,0.09133729,91935.0,91934.0,0.88622695]
[1764717126836,0.09133729,91935.0,91934.0,0.89710125]
[1764717132033,0.00516319,91935.0,91934.0,0.89710125]
[1764717133141,0.00516319,91935.0,91934.0,0.99710125]
[1764717133844,0.00516319,91935.0,91934.0,1.07503259]
[1764717134043,0.00516319,91935.0,91934.0,0.99710125]
[1764717135029,0.00516319,91935.0,91934.0,0.89710125]
[1764717135234,0.07656319,91935.0,91934.0,0.88622695]
[1764717135538,0.08743729,91935.0,91934.0,0.96407376]
[1764717135737,0.08743729,91935.0,91934.0,0.88622695]
[1764717135937,0.08743729,91935.0,91934.0,0.96407376]
[1764717137342,0.08743729,91935.0,91934.0,0.88622695]
[1764717137543,0.07656319,91935.0,91934.0,0.88622695]
[1764717137735,0.08743729,91935.0,91934.0,0.88622695]
[1764717138244,0.08743729,91935.0,91934.0,0.9640718]
[1764717139645,0.08743729,91935.0,91934.0,0.88622695]
[1764717141435,0.08743729,91935.0,91934.0,0.96405889]
[1764717142149,0.08743729,91935.0,91934.0,0.88622695]
[1764717142539,0.11066729,91935.0,91934.0,0.35925599]
[1764717142738,0.11066729,91935.0,91934.0,0.70595821]
[1764717143444,0.11066729,91935.0,91934.0,0.74944687]
[1764717143646,0.11066729,91935.0,91934.0,0.84944687]
[1764717144349,0.11066729,91935.0,91934.0,0.77554007]
[1764717145548,0.11066729,91935.0,91934.0,0.87554007]
[1764717145749,0.08743729,91935.0,91934.0,0.88641437]
[1764717146251,0.08743729,91935.0,91934.0,0.78641437]
[1764717146440,0.08743729,91935.0,91934.0,0.77554007]
[1764717146641,0.11066729,91935.0,91934.0,0.74944687]
[1764717147050,0.11066729,91935.0,91934.0,0.70595821]
[1764717147250,0.11066729,91935.0,91934.0,0.80595821]
[1764717147641,0.11066729,91935.0,91934.0,0.84944687]
[1764717148039,0.11066729,91935.0,91934.0,0.87554007]
[1764717149645,0.11066729,91935.0,91934.0,0.88614695]
[1764717150044,0.11066729,91935.0,91934.0,0.87554007]
[1764717150358,0.11066729,91935.0,91934.0,0.88614695]
[1764717150647,0.11066729,91935.0,91934.0,0.87554007]
[1764717150853,0.08743729,91935.0,91934.0,0.87554007]
[1764717151656,0.08743729,91935.0,91934.0,0.88614695]
[1764717152754,0.08743729,91935.0,91934.0,0.80595821]
[1764717153346,0.08743729,91935.0,91934.0,0.84944687]
[1764717154746,0.08743729,91935.0,91934.0,0.80595821]
[1764717155655,0.08743729,91935.0,91934.0,0.84944687]
[1764717156658,0.08743729,91935.0,91934.0,0.70595821]
[1764717157452,0.08743729,91935.0,91934.0,0.70495821]
[1764717157658,0.08743729,91935.0,91934.0,0.79408604]
[1764717157855,0.08743729,91935.0,91934.0,0.69408604]
[1764717158159,0.08743729,91935.0,91934.0,0.16831547]
[1764717158357,0.12743729,91935.0,91934.0,0.001]
[1764717159262,0.13743729,91935.0,91934.0,0.001]
[1764717160062,0.08743729,91935.0,91934.0,0.001]
[1764717160462,0.08743729,91935.0,91934.0,0.06391]
[1764717163272,0.01603729,91935.0,91934.0,0.06391]
[1764717163654,0.04894729,91935.0,91934.0,0.06391]
[1764717164462,0.04894729,91935.0,91934.0,0.16391]
[1764717164953,0.07941729,91935.0,91934.0,0.16391]
[1764717165960,0.06854319,91935.0,91934.0,0.16391]
[1764717168669,0.03807319,91935.0,91934.0,0.16391]
[1764717169563,0.00516319,91935.0,91934.0,0.16391]
[1764717170868,0.00516319,91935.0,91934.0,0.36387695]
[1764717172670,0.00516319,91935.0,91934.0,0.36487695]
[1764717173265,0.00516319,91935.0,91934.0,0.46487695]
[1764717173471,0.0742515,91958.0,91957.0,0.06291]
[1764717173662,0.09753736,91958.0,91957.0,0.56863]
[1764717174670,0.0108715,91958.0,91956.0,0.50472]
[1764717174968,0.37919,91960.0,91955.0,0.04661672]
[1764717174969,0.0742517,91956.0,91955.0,0.07650672]
[1764717175271,0.1242517,91956.0,91955.0,0.02989]
[1764717175570,0.0742521,91952.0,91951.0,0.56759]
[1764717176257,0.0742525,91949.0,91948.0,0.00016319]
[1764717176662,0.1142525,91949.0,91948.0,0.00016319]
[1764717176964,0.1242525,91949.0,91948.0,0.00016319]
[1764717177165,0.14752649,91949.0,91948.0,0.00016319]
[1764717177362,0.09752649,91949.0,91948.0,0.00016319]
[1764717177577,0.09752649,91949.0,91939.0,0.64761466]
[1764717177578,0.0926436,91940.0,91939.0,0.50468]
[1764717177766,0.1426436,91940.0,91939.0,0.50468]
[1764717177968,0.06338,91939.0,91938.0,0.08815446]
[1764717178171,0.08177,91935.0,91934.0,0.05838637]
[1764717178364,0.0742545,91932.0,91931.0,0.12129637]
[1764717178564,0.0742545,91932.0,91931.0,0.02989]
[1764717178760,0.0742545,91932.0,91931.0,0.11477188]
[1764717179664,0.0108749,91929.0,91928.0,0.50468]
[1764717179865,0.0108749,91929.0,91928.0,0.53457]
[1764717179866,0.0742549,91929.0,91928.0,0.53457]
[1764717180065,0.0742549,91929.0,91928.0,0.50468]
[1764717180573,0.0742549,91929.0,91928.0,0.53457]
[1764717180771,0.1242549,91929.0,91928.0,0.50468]
[1764717180967,0.01839,91930.0,91925.0,0.011972]
[1764717180968,0.0742552,91926.0,91925.0,0.07035837]
[1764717181173,0.0742552,91926.0,91925.0,0.06291]
[1764717181368,0.0742552,91926.0,91925.0,0.0769432]
[1764717181682,0.4350552,91926.0,91925.0,0.0140332]
[1764717181976,0.0108756,91923.0,91922.0,0.00016319]
[1764717182172,0.0742556,91923.0,91922.0,0.00016319]
[1764717182367,0.0742556,91923.0,91922.0,0.11562195]
[1764717182576,0.0742556,91923.0,91922.0,0.03005319]
[1764717182781,0.0742556,91923.0,91922.0,0.00016319]
[1764717182972,0.0742556,91923.0,91922.0,0.07114051]
[1764717183175,0.0742556,91923.0,91922.0,0.05710319]
[1764717183774,0.0457856,91923.0,91922.0,0.24391598]
[1764717184080,0.05876,91923.0,91922.0,0.15741978]
[1764717184264,0.05876,91923.0,91922.0,0.10147978]
[1764717184463,0.05876,91923.0,91922.0,0.12907978]
[1764717185178,0.05876,91923.0,91922.0,0.15741978]
[1764717186081,0.05876,91923.0,91922.0,0.51821978]
[1764717188669,0.05876,91923.0,91922.0,0.15741978]
[1764717192778,0.002,91923.0,91922.0,0.25741978]
[1764717194381,0.03131,91923.0,91922.0,0.25741978]
[1764717194576,0.05876,91923.0,91922.0,0.25741978]
[1764717198586,0.05876,91923.0,91922.0,0.26829548]
[1764717199172,0.05876,91923.0,91922.0,0.25741978]
[1764717201587,0.002,91923.0,91922.0,0.25741978]
[1764717201888,0.3716734,91942.0,91933.0,0.05594]
[1764717201889,0.0108743,91934.0,91933.0,0.05594]
[1764717202181,0.0108743,91934.0,91933.0,0.41674]
[1764717202383,0.0108743,91934.0,91933.0,0.41774]
[1764717202886,0.0148743,91934.0,91933.0,0.41874]
[1764717203188,0.0148743,91934.0,91933.0,0.51874]
[1764717203481,0.004,91934.0,91933.0,0.51874]
[1764717204184,0.004,91934.0,91933.0,0.57703369]
[1764717204884,0.0108741,91936.0,91935.0,0.05594]
[1764717206082,0.0128741,91936.0,91935.0,0.15594]
[1764717206281,0.0128741,91936.0,91935.0,0.21523369]
[1764717207080,0.002,91936.0,91935.0,0.21523369]
[1764717207278,0.0108737,91939.0,91938.0,0.05594]
[1764717207592,0.0108734,91942.0,91940.0,0.05594]
[1764717207781,0.0108734,91942.0,91940.0,0.5675]
[1764717208086,0.0108732,91943.0,91940.0,0.5685]
[1764717208686,0.0108732,91943.0,91940.0,0.6685]
[1764717208887,0.05992319,91941.0,91940.0,0.66162]
[1764717209079,0.00316319,91941.0,91940.0,0.66162]
[1764717209281,0.00316319,91941.0,91940.0,0.72089213]
[1764717209482,0.00216319,91941.0,91940.0,0.66262]
[1764717210089,0.03147319,91941.0,91940.0,0.66262]
[1764717210293,0.05892319,91941.0,91940.0,0.72088242]
[1764717210484,0.00216319,91941.0,91940.0,0.71988242]
[1764717210787,0.00216319,91941.0,91940.0,0.72088242]
[1764717211191,0.00216319,91941.0,91940.0,0.72776242]
[1764717211382,0.00216319,91941.0,91940.0,0.6695]
[1764717211688,0.00216319,91941.0,91940.0,0.72776242]
[1764717212678,0.00216319,91941.0,91940.0,0.6685]
[1764717212883,0.00216319,91941.0,91940.0,0.6695]
[1764717214087,0.00116319,91941.0,91940.0,0.6695]
[1764717214587,0.00116319,91941.0,91940.0,0.72770471]
[1764717214791,0.00116319,91941.0,91940.0,0.6695]
[1764717215585,0.00016319,91941.0,91940.0,0.6695]
[1764717215782,0.00116319,91941.0,91940.0,0.6695]
[1764717216689,0.00116319,91941.0,91940.0,0.6685]
[1764717216887,0.00116319,91941.0,91940.0,0.6695]
[1764717217195,0.0108727,91948.0,91947.0,0.05543]
[1764717217396,0.0108727,91948.0,91947.0,0.56007]
[1764717217795,0.0681427,91948.0,91947.0,0.56007]
[1764717218383,0.0701427,91948.0,91947.0,0.66007]
[1764717218796,0.0681427,91948.0,91947.0,0.66007]
[1764717218996,0.0681427,91948.0,91947.0,0.66107]
[1764717218997,0.0701427,91948.0,91947.0,0.66107]
[1764717220288,0.0701427,91948.0,91947.0,0.001]
[1764717220494,0.0701427,91948.0,91947.0,0.50564]
[1764717220994,0.0701427,91948.0,91947.0,0.001]
[1764717220995,0.1201427,91948.0,91947.0,0.001]
[1764717221405,0.0108739,91937.0,91931.0,0.0582004]
[1764717221705,0.0108739,91937.0,91930.0,0.14193466]
[1764717221706,0.05727,91931.0,91930.0,0.14193466]
[1764717221901,0.05727,91927.0,91924.0,0.5046]
[1764717222398,0.05727,91927.0,91926.0,0.388]
[1764717222589,0.05727,91927.0,91926.0,0.41623]
[1764717223084,0.0681451,91927.0,91926.0,0.41623]
[1764717223489,0.0681451,91927.0,91926.0,0.41823]
[1764717224502,0.0681451,91927.0,91926.0,0.41923]
[1764717225002,0.0691451,91927.0,91926.0,0.41823]
[1764717225299,0.0691451,91927.0,91926.0,0.41623]